[Event "Titled Tuesday Blitz July 25 Late 2023"]
[White "Gireman, Ja"]
[Black "Tanenbaum, Zachary"]
[WhiteFideId "5043794"]
[BlackFideId "2060850"]
[WhiteElo "2586"]
[BlackElo "2742"]
[Result "0-1"]
[Round "10"]
[TimeControl "180+2"]
[Date "2023.07.25"]
[WhiteClock "0:00:00"]
[BlackClock "0:00:05"]
[Board "35"]

1. e4 {[%clk 0:03:00]}  e5 {[%clk 0:02:59]} 2. Nf3 {[%clk 0:03:00]}  Nc6 {[%clk 0:03:00]} 3. Bc4 {[%clk 0:03:00]}  Nf6 {[%clk 0:03:00]} 4. d4 {[%clk 0:03:00]}  exd4 {[%clk 0:02:59]} 5. O-O {[%clk 0:03:00]}  Nxe4 {[%clk 0:02:59]} 6. Re1 {[%clk 0:03:00]}  d5 {[%clk 0:03:00]} 7. Bxd5 {[%clk 0:03:01]}  Qxd5 {[%clk 0:03:01]} 8. Nc3 {[%clk 0:03:01]}  Qh5 {[%clk 0:03:01]} 9. Nxe4 {[%clk 0:03:02]}  Be6 {[%clk 0:03:01]} 10. Bg5 {[%clk 0:03:00]}  h6 {[%clk 0:03:01]} 11. Bf6 {[%clk 0:02:59]}  Qg6 {[%clk 0:03:02]} 12. Nh4 {[%clk 0:02:56]}  Qh7 {[%clk 0:03:02]} 13. Nf3 {[%clk 0:02:53]}  Bb4 {[%clk 0:02:44]} 14. c3 {[%clk 0:02:53]}  dxc3 {[%clk 0:02:44]} 15. bxc3 {[%clk 0:02:54]}  Be7 {[%clk 0:02:44]} 16. Bxe7 {[%clk 0:02:49]}  Nxe7 {[%clk 0:02:36]} 17. Qa4+ {[%clk 0:02:48]}  Nc6 {[%clk 0:02:29]} 18. Nc5 {[%clk 0:02:34]}  O-O {[%clk 0:02:28]} 19. Nxe6 {[%clk 0:02:20]}  fxe6 {[%clk 0:02:29]} 20. Rxe6 {[%clk 0:02:20]}  Qd3 {[%clk 0:01:58]} 21. Rae1 {[%clk 0:02:09]}  Qxc3 {[%clk 0:01:53]} 22. h4 {[%clk 0:02:08]}  Rad8 {[%clk 0:01:38]} 23. Qg4 {[%clk 0:02:05]}  Nd4 {[%clk 0:00:57]} 24. R1e3 {[%clk 0:01:27]}  Nxf3+ {[%clk 0:00:52]} 25. gxf3 {[%clk 0:01:26]}  Qa1+ {[%clk 0:00:50]} 26. Re1 {[%clk 0:01:16]}  Rd1 {[%clk 0:00:50]} 27. Rxd1 {[%clk 0:01:14]}  Qxd1+ {[%clk 0:00:50]} 28. Kg2 {[%clk 0:01:15]}  Qd5 {[%clk 0:00:34]} 29. Re7 {[%clk 0:01:15]}  Rf7 {[%clk 0:00:33]} 30. Rxf7 {[%clk 0:01:15]}  Kxf7 {[%clk 0:00:21]} 31. Qf4+ {[%clk 0:01:14]}  Kg6 {[%clk 0:00:19]} 32. Qxc7 {[%clk 0:01:15]}  Qxa2 {[%clk 0:00:19]} 33. Qxb7 {[%clk 0:01:14]}  Qa4 {[%clk 0:00:13]} 34. Qd5 {[%clk 0:01:09]}  Qxh4 {[%clk 0:00:10]} 35. Qd3+ {[%clk 0:01:04]}  Kh5 {[%clk 0:00:10]} 36. Qd7 {[%clk 0:00:58]}  Qg5+ {[%clk 0:00:09]} 37. Kf1 {[%clk 0:00:58]}  a5 {[%clk 0:00:08]} 38. Qf7+ {[%clk 0:00:55]}  Qg6 {[%clk 0:00:07]} 39. Qf4 {[%clk 0:00:54]}  Qd3+ {[%clk 0:00:06]} 40. Kg2 {[%clk 0:00:53]}  Kg6 {[%clk 0:00:06]} 41. Qg4+ {[%clk 0:00:46]}  Kf7 {[%clk 0:00:05]} 42. Qa4 {[%clk 0:00:42]}  Qg6+ {[%clk 0:00:04]} 43. Kh2 {[%clk 0:00:40]}  Qf5 {[%clk 0:00:05]} 44. f4 {[%clk 0:00:39]}  Qh5+ {[%clk 0:00:05]} 45. Kg3 {[%clk 0:00:37]}  Qf5 {[%clk 0:00:06]} 46. Qc4+ {[%clk 0:00:33]}  Kg6 {[%clk 0:00:07]} 47. f3 {[%clk 0:00:28]}  Kh7 {[%clk 0:00:07]} 48. Kf2 {[%clk 0:00:27]}  Qb1 {[%clk 0:00:07]} 49. Qa4 {[%clk 0:00:20]}  Qb2+ {[%clk 0:00:06]} 50. Kg3 {[%clk 0:00:20]}  Qb6 {[%clk 0:00:06]} 51. f5 {[%clk 0:00:18]}  Qc7+ {[%clk 0:00:06]} 52. Kh3 {[%clk 0:00:12]}  Qc5 {[%clk 0:00:06]} 53. Qg4 {[%clk 0:00:11]}  Qb4 {[%clk 0:00:05]} 54. Qg6+ {[%clk 0:00:11]}  Kg8 {[%clk 0:00:06]} 55. Qe8+ {[%clk 0:00:11]}  Qf8 {[%clk 0:00:07]} 56. Qe6+ {[%clk 0:00:11]}  Kh8 {[%clk 0:00:07]} 57. Qd7 {[%clk 0:00:10]}  a4 {[%clk 0:00:07]} 58. Qxa4 {[%clk 0:00:10]}  Qxf5+ {[%clk 0:00:08]} 59. Kg3 {[%clk 0:00:10]}  Qg5+ {[%clk 0:00:08]} 60. Kf2 {[%clk 0:00:10]}  Kh7 {[%clk 0:00:09]} 61. Qe4+ {[%clk 0:00:09]}  Qg6 {[%clk 0:00:09]} 62. Qc4 {[%clk 0:00:10]}  h5 {[%clk 0:00:09]} 63. Qh4 {[%clk 0:00:08]}  Kh6 {[%clk 0:00:09]} 64. Qf4+ {[%clk 0:00:06]}  Qg5 {[%clk 0:00:09]} 65. Qd6+ {[%clk 0:00:06]}  Qf6 {[%clk 0:00:10]} 66. Qd2+ {[%clk 0:00:06]}  g5 {[%clk 0:00:10]} 67. Qd7 {[%clk 0:00:06]}  h4 {[%clk 0:00:07]} 68. Qe8 {[%clk 0:00:05]}  Qd4+ {[%clk 0:00:07]} 69. Kg2 {[%clk 0:00:05]}  Qb2+ {[%clk 0:00:05]} 70. Kh3 {[%clk 0:00:05]}  Qf6 {[%clk 0:00:06]} 71. Kg2 {[%clk 0:00:03]}  Kg7 {[%clk 0:00:06]} 72. Qd7+ {[%clk 0:00:03]}  Qf7 {[%clk 0:00:06]} 73. Qd4+ {[%clk 0:00:03]}  Kg6 {[%clk 0:00:06]} 74. Qd3+ {[%clk 0:00:03]}  Kh5 {[%clk 0:00:06]} 75. Qe4 {[%clk 0:00:03]}  Qc7 {[%clk 0:00:05]} 76. Qg4+ {[%clk 0:00:02]}  Kh6 {[%clk 0:00:05]} 77. Qe6+ {[%clk 0:00:03]}  Kg7 {[%clk 0:00:05]} 78. Kf2 {[%clk 0:00:02]}  Qg3+ {[%clk 0:00:05]} 79. Ke3 {[%clk 0:00:00]}  Qe1+ {[%clk 0:00:05]} 0-1


[Site "https://www.chess.com"]

[Event "Titled Tuesday Blitz July 25 Late 2023"]
[White "Vovk, Orest"]
[Black "Salimova, Nurgyul"]
[WhiteFideId "14113490"]
[BlackFideId "2915138"]
[WhiteElo "2576"]
[BlackElo "2699"]
[Result "1-0"]
[Round "10"]
[TimeControl "180+2"]
[Date "2023.07.25"]
[WhiteClock "0:00:32"]
[BlackClock "0:00:00"]
[Board "36"]

1. Nh3 {[%clk 0:02:48]}  d5 {[%clk 0:02:58]} 2. g4 {[%clk 0:02:48]}  Bxg4 {[%clk 0:02:56]} 3. Rg1 {[%clk 0:02:48]}  h5 {[%clk 0:02:47]} 4. c4 {[%clk 0:02:48]}  dxc4 {[%clk 0:02:40]} 5. Qa4+ {[%clk 0:02:47]}  Qd7 {[%clk 0:02:35]} 6. Qxd7+ {[%clk 0:02:40]}  Nxd7 {[%clk 0:02:35]} 7. Na3 {[%clk 0:02:37]}  Nb6 {[%clk 0:02:18]} 8. Ng5 {[%clk 0:02:36]}  f6 {[%clk 0:02:03]} 9. Ne4 {[%clk 0:02:24]}  e5 {[%clk 0:01:55]} 10. e3 {[%clk 0:02:17]}  Be6 {[%clk 0:01:51]} 11. Nb5 {[%clk 0:02:06]}  Kd7 {[%clk 0:01:25]} 12. a4 {[%clk 0:02:03]}  c6 {[%clk 0:01:20]} 13. a5 {[%clk 0:02:01]}  cxb5 {[%clk 0:01:09]} 14. axb6 {[%clk 0:02:00]}  a6 {[%clk 0:01:09]} 15. d3 {[%clk 0:01:55]}  cxd3 {[%clk 0:01:04]} 16. Bxd3 {[%clk 0:01:55]}  Kc6 {[%clk 0:00:47]} 17. Bd2 {[%clk 0:01:52]}  Rd8 {[%clk 0:00:41]} 18. Ke2 {[%clk 0:01:41]}  Bg4+ {[%clk 0:00:06]} 19. f3 {[%clk 0:01:41]}  Bxf3+ {[%clk 0:00:05]} 20. Kxf3 {[%clk 0:01:41]}  Rxd3 {[%clk 0:00:06]} 21. Rgc1+ {[%clk 0:01:40]}  Kd5 {[%clk 0:00:06]} 22. Rc7 {[%clk 0:01:34]}  Ke6 {[%clk 0:00:05]} 23. Rxb7 {[%clk 0:01:29]}  f5 {[%clk 0:00:05]} 24. Ng5+ {[%clk 0:01:22]}  Kf6 {[%clk 0:00:06]} 25. Ke2 {[%clk 0:01:22]}  Rxd2+ {[%clk 0:00:02]} 26. Kxd2 {[%clk 0:01:22]}  Kxg5 {[%clk 0:00:03]} 27. Rb8 {[%clk 0:01:17]}  Nf6 {[%clk 0:00:03]} 28. Ke2 {[%clk 0:01:06]}  Nd7 {[%clk 0:00:03]} 29. Rb7 {[%clk 0:01:00]}  Nc5 {[%clk 0:00:03]} 30. Rg1+ {[%clk 0:00:48]}  Kh6 {[%clk 0:00:03]} 31. Rc7 {[%clk 0:00:46]}  Kh7 {[%clk 0:00:02]} 32. b7 {[%clk 0:00:42]}  Nxb7 {[%clk 0:00:02]} 33. Rxb7 {[%clk 0:00:42]}  Kh6 {[%clk 0:00:02]} 34. Rb6+ {[%clk 0:00:40]}  Kh7 {[%clk 0:00:03]} 35. Rxa6 {[%clk 0:00:41]}  Bc5 {[%clk 0:00:03]} 36. Rc6 {[%clk 0:00:37]}  Bb4 {[%clk 0:00:01]} 37. Rc7 {[%clk 0:00:35]}  Rg8 {[%clk 0:00:00]} 38. Rg5 {[%clk 0:00:32]} 1-0


[Site "https://www.chess.com"]

[Event "Titled Tuesday Blitz July 25 Late 2023"]
[White "Dimitrov, Atanas"]
[Black "Musovic, Armin"]
[WhiteFideId "2901315"]
[BlackFideId "939935"]
[WhiteElo "2684"]
[BlackElo "2551"]
[Result "1-0"]
[Round "10"]
[TimeControl "180+2"]
[Date "2023.07.25"]
[WhiteClock "0:00:14"]
[BlackClock "0:00:02"]
[Board "37"]

1. Nf3 {[%clk 0:03:00]}  Nf6 {[%clk 0:02:54]} 2. c4 {[%clk 0:03:00]}  c5 {[%clk 0:02:54]} 3. g3 {[%clk 0:03:00]}  Nc6 {[%clk 0:02:54]} 4. Bg2 {[%clk 0:03:01]}  g6 {[%clk 0:02:54]} 5. O-O {[%clk 0:03:01]}  Bg7 {[%clk 0:02:55]} 6. Nc3 {[%clk 0:03:02]}  O-O {[%clk 0:02:56]} 7. d4 {[%clk 0:03:02]}  d5 {[%clk 0:02:56]} 8. cxd5 {[%clk 0:02:56]}  Nxd5 {[%clk 0:02:51]} 9. Nxd5 {[%clk 0:02:35]}  Qxd5 {[%clk 0:02:52]} 10. Be3 {[%clk 0:02:34]}  Qh5 {[%clk 0:02:35]} 11. dxc5 {[%clk 0:02:31]}  Bxb2 {[%clk 0:02:33]} 12. Rb1 {[%clk 0:02:29]}  Bf6 {[%clk 0:02:22]} 13. Qa4 {[%clk 0:02:28]}  Rd8 {[%clk 0:01:54]} 14. Rfd1 {[%clk 0:02:20]}  Rf8 {[%clk 0:01:25]} 15. Nd4 {[%clk 0:02:01]}  Nxd4 {[%clk 0:01:21]} 16. Bxd4 {[%clk 0:02:02]}  Qxe2 {[%clk 0:01:07]} 17. Bxf6 {[%clk 0:01:53]}  exf6 {[%clk 0:01:08]} 18. Bxb7 {[%clk 0:01:38]}  Bxb7 {[%clk 0:00:58]} 19. Rxb7 {[%clk 0:01:39]}  Rac8 {[%clk 0:00:59]} 20. Rc1 {[%clk 0:01:29]}  Rfd8 {[%clk 0:00:57]} 21. Qb3 {[%clk 0:01:17]}  Rf8 {[%clk 0:00:19]} 22. Rxa7 {[%clk 0:01:09]}  h5 {[%clk 0:00:19]} 23. h4 {[%clk 0:01:07]}  Rc6 {[%clk 0:00:17]} 24. Rb7 {[%clk 0:00:56]}  Qe4 {[%clk 0:00:14]} 25. a4 {[%clk 0:00:49]}  f5 {[%clk 0:00:09]} 26. a5 {[%clk 0:00:45]}  f4 {[%clk 0:00:10]} 27. Rb4 {[%clk 0:00:45]}  Qe5 {[%clk 0:00:08]} 28. Rxf4 {[%clk 0:00:42]}  Rxc5 {[%clk 0:00:08]} 29. Rxc5 {[%clk 0:00:41]}  Qxc5 {[%clk 0:00:09]} 30. Ra4 {[%clk 0:00:42]}  Qc1+ {[%clk 0:00:08]} 31. Kh2 {[%clk 0:00:41]}  Ra8 {[%clk 0:00:08]} 32. a6 {[%clk 0:00:37]}  Qc5 {[%clk 0:00:08]} 33. Qf3 {[%clk 0:00:37]}  Ra7 {[%clk 0:00:07]} 34. Qe2 {[%clk 0:00:36]}  Kh7 {[%clk 0:00:07]} 35. Ra2 {[%clk 0:00:22]}  Qc6 {[%clk 0:00:06]} 36. Qd3 {[%clk 0:00:21]}  Qf6 {[%clk 0:00:05]} 37. Qe3 {[%clk 0:00:19]}  Re7 {[%clk 0:00:04]} 38. Qc5 {[%clk 0:00:17]}  Re5 {[%clk 0:00:02]} 39. Qd4 {[%clk 0:00:16]}  Rf5 {[%clk 0:00:01]} 40. Qxf6 {[%clk 0:00:15]}  Rxf6 {[%clk 0:00:02]} 41. a7 {[%clk 0:00:16]}  Rxf2+ {[%clk 0:00:02]} 42. Rxf2 {[%clk 0:00:14]} 1-0


[Site "https://www.chess.com"]

[Event "Titled Tuesday Blitz July 25 Late 2023"]
[White "Voege, Tobias"]
[Black "Molenda, Marcin"]
[WhiteFideId "1270513"]
[BlackFideId "1173065"]
[WhiteElo "2645"]
[BlackElo "2539"]
[Result "1-0"]
[Round "10"]
[TimeControl "180+2"]
[Date "2023.07.25"]
[WhiteClock "0:01:48"]
[BlackClock "0:01:30"]
[Board "38"]

1. e4 {[%clk 0:03:00]}  e5 {[%clk 0:02:58]} 2. Nf3 {[%clk 0:03:00]}  Nc6 {[%clk 0:02:58]} 3. d4 {[%clk 0:03:00]}  exd4 {[%clk 0:02:58]} 4. Nxd4 {[%clk 0:03:01]}  Nf6 {[%clk 0:02:58]} 5. Nc3 {[%clk 0:03:00]}  Bb4 {[%clk 0:02:56]} 6. Nxc6 {[%clk 0:03:00]}  bxc6 {[%clk 0:02:57]} 7. Bd3 {[%clk 0:03:00]}  O-O {[%clk 0:02:56]} 8. O-O {[%clk 0:02:59]}  d5 {[%clk 0:02:56]} 9. exd5 {[%clk 0:02:53]}  Bg4 {[%clk 0:02:56]} 10. Be2 {[%clk 0:02:50]}  Bxe2 {[%clk 0:02:54]} 11. Nxe2 {[%clk 0:02:49]}  cxd5 {[%clk 0:02:54]} 12. Bg5 {[%clk 0:02:47]}  c6 {[%clk 0:02:54]} 13. c4 {[%clk 0:02:45]}  h6 {[%clk 0:02:45]} 14. Bh4 {[%clk 0:02:42]}  Be7 {[%clk 0:02:41]} 15. cxd5 {[%clk 0:02:41]}  cxd5 {[%clk 0:02:40]} 16. Nd4 {[%clk 0:02:40]}  Rb8 {[%clk 0:02:40]} 17. Nc6 {[%clk 0:02:40]}  Qd6 {[%clk 0:02:33]} 18. Nxb8 {[%clk 0:02:38]}  Rxb8 {[%clk 0:02:34]} 19. Bg3 {[%clk 0:02:37]}  Qb6 {[%clk 0:02:21]} 20. Bxb8 {[%clk 0:02:36]}  Qxb8 {[%clk 0:02:22]} 21. Re1 {[%clk 0:02:34]}  Bd6 {[%clk 0:02:22]} 22. g3 {[%clk 0:02:34]}  Qxb2 {[%clk 0:02:20]} 23. Rb1 {[%clk 0:02:33]}  Qxa2 {[%clk 0:02:21]} 24. Ra1 {[%clk 0:02:34]}  Qb2 {[%clk 0:02:18]} 25. Rxa7 {[%clk 0:02:31]}  Bc5 {[%clk 0:02:18]} 26. Ra8+ {[%clk 0:02:32]}  Kh7 {[%clk 0:02:18]} 27. Re2 {[%clk 0:02:29]}  Qb7 {[%clk 0:02:13]} 28. Qd3+ {[%clk 0:02:27]}  Ne4 {[%clk 0:02:13]} 29. Raa2 {[%clk 0:02:19]}  f5 {[%clk 0:02:05]} 30. Kg2 {[%clk 0:02:17]}  Qf7 {[%clk 0:01:47]} 31. Ra5 {[%clk 0:02:04]}  Qc7 {[%clk 0:01:42]} 32. Qxd5 {[%clk 0:01:57]}  g6 {[%clk 0:01:32]} 33. Rxe4 {[%clk 0:01:49]}  fxe4 {[%clk 0:01:30]} 34. Rxc5 {[%clk 0:01:48]} 1-0


[Site "https://www.chess.com"]

[Event "Titled Tuesday Blitz July 25 Late 2023"]
[White "Ordekalog"]
[Black "Shuvalova, Polina"]
[BlackFideId "24171760"]
[WhiteElo "2538"]
[BlackElo "2641"]
[Result "0-1"]
[Round "10"]
[TimeControl "180+2"]
[Date "2023.07.25"]
[WhiteClock "0:00:00"]
[BlackClock "0:00:03"]
[Board "39"]

1. e4 {[%clk 0:03:00]}  c6 {[%clk 0:02:55]} 2. d4 {[%clk 0:03:00]}  d5 {[%clk 0:02:56]} 3. Nd2 {[%clk 0:03:00]}  dxe4 {[%clk 0:02:56]} 4. Nxe4 {[%clk 0:03:00]}  Nf6 {[%clk 0:02:57]} 5. Bd3 {[%clk 0:02:59]}  Qxd4 {[%clk 0:02:54]} 6. Nf3 {[%clk 0:02:59]}  Qd5 {[%clk 0:02:44]} 7. Qe2 {[%clk 0:02:57]}  Bg4 {[%clk 0:02:25]} 8. c4 {[%clk 0:02:47]}  Bxf3 {[%clk 0:02:01]} 9. Qxf3 {[%clk 0:02:39]}  Qd4 {[%clk 0:02:00]} 10. O-O {[%clk 0:02:37]}  Nbd7 {[%clk 0:02:00]} 11. Nxf6+ {[%clk 0:02:09]}  Qxf6 {[%clk 0:01:52]} 12. Qg3 {[%clk 0:01:59]}  e6 {[%clk 0:01:36]} 13. Bg5 {[%clk 0:01:57]}  Qe5 {[%clk 0:01:22]} 14. Bf4 {[%clk 0:01:50]}  Qf6 {[%clk 0:01:19]} 15. Bg5 {[%clk 0:01:40]}  Qd4 {[%clk 0:01:19]} 16. Rad1 {[%clk 0:01:38]}  Bd6 {[%clk 0:01:18]} 17. Qh3 {[%clk 0:01:36]}  Qe5 {[%clk 0:01:15]} 18. f4 {[%clk 0:01:29]}  Qc5+ {[%clk 0:01:06]} 19. Kh1 {[%clk 0:01:29]}  h6 {[%clk 0:00:44]} 20. Bg6 {[%clk 0:01:24]}  Nf8 {[%clk 0:00:31]} 21. b4 {[%clk 0:01:16]}  Qxb4 {[%clk 0:00:27]} 22. f5 {[%clk 0:01:09]}  e5 {[%clk 0:00:21]} 23. f6 {[%clk 0:01:08]}  gxf6 {[%clk 0:00:17]} 24. Bxf7+ {[%clk 0:01:07]}  Kxf7 {[%clk 0:00:16]} 25. Rxf6+ {[%clk 0:01:07]}  Kg7 {[%clk 0:00:16]} 26. Rxh6 {[%clk 0:01:04]}  Ng6 {[%clk 0:00:10]} 27. Rf1 {[%clk 0:01:01]}  Raf8 {[%clk 0:00:08]} 28. Qd7+ {[%clk 0:00:57]}  Be7 {[%clk 0:00:08]} 29. Rxg6+ {[%clk 0:00:08]}  Kxg6 {[%clk 0:00:08]} 30. Rd1 {[%clk 0:00:06]}  Bxg5 {[%clk 0:00:07]} 31. h3 {[%clk 0:00:06]}  Bf6 {[%clk 0:00:07]} 32. Qg4+ {[%clk 0:00:00]}  Bg5 {[%clk 0:00:03]} 0-1


[Site "https://www.chess.com"]

[Event "Titled Tuesday Blitz July 25 Late 2023"]
[White "Rangel, Daniel"]
[Black "Haydon, David L"]
[WhiteFideId "2124475"]
[BlackFideId "415405"]
[WhiteElo "2465"]
[BlackElo "2637"]
[Result "1-0"]
[Round "10"]
[TimeControl "180+2"]
[Date "2023.07.25"]
[WhiteClock "0:00:35"]
[BlackClock "0:00:37"]
[Board "40"]

1. c4 {[%clk 0:03:00]}  c6 {[%clk 0:02:59]} 2. d4 {[%clk 0:03:00]}  d5 {[%clk 0:03:00]} 3. cxd5 {[%clk 0:02:58]}  cxd5 {[%clk 0:02:59]} 4. Nc3 {[%clk 0:02:59]}  Nf6 {[%clk 0:02:59]} 5. Bf4 {[%clk 0:02:58]}  a6 {[%clk 0:02:59]} 6. Nf3 {[%clk 0:02:58]}  Nc6 {[%clk 0:02:59]} 7. e3 {[%clk 0:02:57]}  e6 {[%clk 0:02:59]} 8. Bd3 {[%clk 0:02:57]}  Bd6 {[%clk 0:02:57]} 9. O-O {[%clk 0:02:55]}  Bxf4 {[%clk 0:02:54]} 10. exf4 {[%clk 0:02:56]}  O-O {[%clk 0:02:54]} 11. Ne2 {[%clk 0:02:44]}  Bd7 {[%clk 0:02:49]} 12. Ng3 {[%clk 0:02:40]}  g6 {[%clk 0:02:48]} 13. Bc2 {[%clk 0:02:33]}  Qb6 {[%clk 0:02:46]} 14. Bb3 {[%clk 0:02:29]}  Na5 {[%clk 0:02:43]} 15. Ne5 {[%clk 0:02:24]}  Bb5 {[%clk 0:02:36]} 16. Re1 {[%clk 0:02:21]}  Nxb3 {[%clk 0:02:35]} 17. axb3 {[%clk 0:02:13]}  Rac8 {[%clk 0:02:36]} 18. h4 {[%clk 0:02:06]}  h5 {[%clk 0:02:32]} 19. Qd2 {[%clk 0:01:47]}  Kg7 {[%clk 0:02:19]} 20. f5 {[%clk 0:01:34]}  exf5 {[%clk 0:02:18]} 21. Qg5 {[%clk 0:01:12]}  Kh7 {[%clk 0:02:02]} 22. Nxg6 {[%clk 0:00:58]}  Rg8 {[%clk 0:01:37]} 23. Re7 {[%clk 0:00:51]}  Be8 {[%clk 0:01:35]} 24. Nf8+ {[%clk 0:00:38]}  Rxf8 {[%clk 0:00:37]} 25. Nxf5 {[%clk 0:00:35]} 1-0


[Site "https://www.chess.com"]

[Event "Titled Tuesday Blitz July 25 Late 2023"]
[White "ChessSG1"]
[Black "Tanaka, Taira Tyler"]
[BlackFideId "7002351"]
[WhiteElo "2447"]
[BlackElo "2631"]
[Result "0-1"]
[Round "10"]
[TimeControl "180+2"]
[Date "2023.07.25"]
[WhiteClock "0:00:00"]
[BlackClock "0:00:08"]
[Board "41"]

1. c4 {[%clk 0:03:00]}  g6 {[%clk 0:02:55]} 2. g3 {[%clk 0:02:59]}  Bg7 {[%clk 0:02:56]} 3. Bg2 {[%clk 0:02:59]}  d6 {[%clk 0:02:53]} 4. Nc3 {[%clk 0:02:58]}  Nf6 {[%clk 0:02:54]} 5. e4 {[%clk 0:02:58]}  O-O {[%clk 0:02:54]} 6. Nge2 {[%clk 0:02:58]}  c5 {[%clk 0:02:52]} 7. d3 {[%clk 0:02:58]}  Nc6 {[%clk 0:02:52]} 8. O-O {[%clk 0:02:58]}  Ne8 {[%clk 0:02:52]} 9. Be3 {[%clk 0:02:58]}  Nd4 {[%clk 0:02:49]} 10. Rb1 {[%clk 0:02:51]}  Rb8 {[%clk 0:02:37]} 11. b4 {[%clk 0:02:48]}  b6 {[%clk 0:02:38]} 12. Qd2 {[%clk 0:02:36]}  Nc7 {[%clk 0:02:36]} 13. f4 {[%clk 0:02:30]}  Bg4 {[%clk 0:02:32]} 14. h3 {[%clk 0:02:29]}  Bxe2 {[%clk 0:02:31]} 15. Nxe2 {[%clk 0:02:29]}  Nxe2+ {[%clk 0:02:29]} 16. Qxe2 {[%clk 0:02:30]}  Ne6 {[%clk 0:02:30]} 17. Qd2 {[%clk 0:02:22]}  Nd4 {[%clk 0:02:21]} 18. Kh2 {[%clk 0:02:21]}  e6 {[%clk 0:02:18]} 19. a3 {[%clk 0:02:17]}  Qc7 {[%clk 0:02:14]} 20. b5 {[%clk 0:02:02]}  Rbe8 {[%clk 0:02:10]} 21. a4 {[%clk 0:02:01]}  f5 {[%clk 0:02:08]} 22. Rbe1 {[%clk 0:01:53]}  e5 {[%clk 0:02:08]} 23. exf5 {[%clk 0:01:52]}  Nxf5 {[%clk 0:02:07]} 24. Bd5+ {[%clk 0:01:07]}  Kh8 {[%clk 0:02:07]} 25. Bc6 {[%clk 0:00:57]}  Re7 {[%clk 0:02:00]} 26. fxe5 {[%clk 0:00:50]}  Bxe5 {[%clk 0:02:00]} 27. Bf4 {[%clk 0:00:51]}  Qd8 {[%clk 0:01:44]} 28. g4 {[%clk 0:00:36]}  Nd4 {[%clk 0:01:40]} 29. Bxe5+ {[%clk 0:00:36]}  Rxe5 {[%clk 0:01:39]} 30. Rxf8+ {[%clk 0:00:30]}  Qxf8 {[%clk 0:01:40]} 31. Rxe5 {[%clk 0:00:29]}  dxe5 {[%clk 0:01:36]} 32. Qe3 {[%clk 0:00:29]}  Qf6 {[%clk 0:01:14]} 33. Bd5 {[%clk 0:00:25]}  Kg7 {[%clk 0:01:14]} 34. Kg3 {[%clk 0:00:12]}  h6 {[%clk 0:01:14]} 35. Qf2 {[%clk 0:00:09]}  Qxf2+ {[%clk 0:01:06]} 36. Kxf2 {[%clk 0:00:10]}  Kf6 {[%clk 0:01:07]} 37. Ke3 {[%clk 0:00:10]}  Kg5 {[%clk 0:01:04]} 38. Bf3 {[%clk 0:00:09]}  Kh4 {[%clk 0:01:03]} 39. Bd1 {[%clk 0:00:04]}  Kxh3 {[%clk 0:00:35]} 40. Ke4 {[%clk 0:00:04]}  Kh4 {[%clk 0:00:34]} 41. Kxe5 {[%clk 0:00:04]}  h5 {[%clk 0:00:32]} 42. gxh5 {[%clk 0:00:05]}  gxh5 {[%clk 0:00:33]} 43. Kd6 {[%clk 0:00:06]}  Kg5 {[%clk 0:00:30]} 44. Bxh5 {[%clk 0:00:05]}  Kxh5 {[%clk 0:00:31]} 45. Kc7 {[%clk 0:00:06]}  Ne2 {[%clk 0:00:21]} 46. Kb7 {[%clk 0:00:05]}  Nc3 {[%clk 0:00:21]} 47. a5 {[%clk 0:00:01]}  bxa5 {[%clk 0:00:20]} 48. Kxa7 {[%clk 0:00:02]}  a4 {[%clk 0:00:14]} 49. b6 {[%clk 0:00:02]}  a3 {[%clk 0:00:15]} 50. b7 {[%clk 0:00:03]}  a2 {[%clk 0:00:14]} 51. b8=Q {[%clk 0:00:03]}  a1=Q+ {[%clk 0:00:15]} 52. Kb7 {[%clk 0:00:04]}  Qb2+ {[%clk 0:00:15]} 53. Kc8 {[%clk 0:00:04]}  Qxb8+ {[%clk 0:00:16]} 54. Kxb8 {[%clk 0:00:05]}  Na2 {[%clk 0:00:07]} 55. Kc7 {[%clk 0:00:05]}  Nb4 {[%clk 0:00:06]} 56. Kb6 {[%clk 0:00:01]}  Nxd3 {[%clk 0:00:06]} 57. Kc6 {[%clk 0:00:02]}  Kg4 {[%clk 0:00:06]} 58. Kd5 {[%clk 0:00:02]}  Kf3 {[%clk 0:00:07]} 59. Kc6 {[%clk 0:00:01]}  Ke3 {[%clk 0:00:07]} 60. Kb5 {[%clk 0:00:01]}  Kd4 {[%clk 0:00:07]} 61. Kc6 {[%clk 0:00:00]}  Kxc4 {[%clk 0:00:08]} 0-1


[Site "https://www.chess.com"]

[Event "Titled Tuesday Blitz July 25 Late 2023"]
[White "Gulamali, Kazim"]
[Black "Bolourchifard, Farzad"]
[WhiteFideId "2024764"]
[BlackFideId "12510084"]
[WhiteElo "2526"]
[BlackElo "2734"]
[Result "0-1"]
[Round "10"]
[TimeControl "180+2"]
[Date "2023.07.25"]
[WhiteClock "0:00:00"]
[BlackClock "0:00:07"]
[Board "43"]

1. e4 {[%clk 0:02:55]}  e5 {[%clk 0:02:57]} 2. Nf3 {[%clk 0:02:55]}  Nc6 {[%clk 0:02:57]} 3. Bc4 {[%clk 0:02:54]}  Bc5 {[%clk 0:02:56]} 4. d3 {[%clk 0:02:55]}  Nf6 {[%clk 0:02:55]} 5. c3 {[%clk 0:02:55]}  d6 {[%clk 0:02:55]} 6. O-O {[%clk 0:02:50]}  a6 {[%clk 0:02:54]} 7. a4 {[%clk 0:02:50]}  h6 {[%clk 0:02:51]} 8. b4 {[%clk 0:02:47]}  Ba7 {[%clk 0:02:51]} 9. Na3 {[%clk 0:02:27]}  O-O {[%clk 0:02:49]} 10. h3 {[%clk 0:02:01]}  Ne7 {[%clk 0:02:44]} 11. Re1 {[%clk 0:01:55]}  Ng6 {[%clk 0:02:44]} 12. Bb3 {[%clk 0:01:50]}  Nh5 {[%clk 0:02:36]} 13. d4 {[%clk 0:01:45]}  Qf6 {[%clk 0:02:30]} 14. Be3 {[%clk 0:01:30]}  Ngf4 {[%clk 0:01:54]} 15. Kh2 {[%clk 0:01:25]}  Qg6 {[%clk 0:01:35]} 16. Rg1 {[%clk 0:00:52]}  exd4 {[%clk 0:01:27]} 17. Nxd4 {[%clk 0:00:30]}  Ne6 {[%clk 0:00:45]} 18. Qf3 {[%clk 0:00:22]}  Nf6 {[%clk 0:00:41]} 19. Nf5 {[%clk 0:00:20]}  Ng5 {[%clk 0:00:22]} 20. Qf4 {[%clk 0:00:16]}  Kh7 {[%clk 0:00:16]} 21. Bxa7 {[%clk 0:00:16]}  Rxa7 {[%clk 0:00:16]} 22. f3 {[%clk 0:00:12]}  Nh5 {[%clk 0:00:13]} 23. Qd2 {[%clk 0:00:10]}  Qf6 {[%clk 0:00:11]} 24. Qd4 {[%clk 0:00:09]}  g6 {[%clk 0:00:11]} 25. Qxf6 {[%clk 0:00:08]}  Nxf6 {[%clk 0:00:11]} 26. Ne3 {[%clk 0:00:09]}  Kg7 {[%clk 0:00:10]} 27. Rad1 {[%clk 0:00:08]}  Ne6 {[%clk 0:00:10]} 28. g3 {[%clk 0:00:07]}  Re8 {[%clk 0:00:10]} 29. h4 {[%clk 0:00:05]}  Nf8 {[%clk 0:00:09]} 30. Rge1 {[%clk 0:00:04]}  N8d7 {[%clk 0:00:10]} 31. Kg2 {[%clk 0:00:04]}  Ne5 {[%clk 0:00:09]} 32. Kf2 {[%clk 0:00:04]}  Be6 {[%clk 0:00:09]} 33. Bxe6 {[%clk 0:00:04]}  fxe6 {[%clk 0:00:10]} 34. a5 {[%clk 0:00:05]}  Ned7 {[%clk 0:00:11]} 35. Kg2 {[%clk 0:00:04]}  Rf8 {[%clk 0:00:11]} 36. Nec4 {[%clk 0:00:04]}  Raa8 {[%clk 0:00:10]} 37. e5 {[%clk 0:00:04]}  Nd5 {[%clk 0:00:10]} 38. exd6 {[%clk 0:00:04]}  cxd6 {[%clk 0:00:11]} 39. Rxe6 {[%clk 0:00:03]}  N7f6 {[%clk 0:00:05]} 40. Rxd6 {[%clk 0:00:03]}  Rfd8 {[%clk 0:00:06]} 41. Rxd8 {[%clk 0:00:03]}  Rxd8 {[%clk 0:00:07]} 42. Nb6 {[%clk 0:00:04]}  Ne3+ {[%clk 0:00:07]} 43. Kh2 {[%clk 0:00:00]}  Nxd1 {[%clk 0:00:07]} 0-1


[Site "https://www.chess.com"]